Cogmind - Beta 15 @@@ ROGUE MODE // 2025.08.07 @ 17:10:05 Player: JuustuToug Result: Destroyed by Y-64 Sentinel with Wave Gun Performance ------------- Evolutions (6) 3000 Regions Visited (14) 2800 Robots Destroyed (72) 360 Value Destroyed (2318) 2318 Prototype IDs (61) 1220 Alien Tech Used (0) 0 Bonus (1511) 1511 TOTAL SCORE: 11209 Bonus ------- High Alert Combat Kills 52 Follower Combat Kills 159 Aligned with FarCom 300 Met Warlord at Base 500 MAIN.C Attacked Warlord 500 Cogmind --------- Core Integrity 0/1150 Matter 300/300 Energy 98/100 System Corruption 7% Temperature Cool (9) Movement Core (50) Location -4/Factory Parts ------- > --- POWER (2) -------- (None) > --- PROPULSION (6) --- (None) > --- UTILITY (9) ------ Advanced Visual Processing Unit Advanced Signal Interpreter Hacking Suite > --- WEAPON (2) ------- (None) > --- INVENTORY (5) ---- Heavy Laser Improved Remote Datajack Lance Lance Force Lance Peak State ------------ > --- POWER ------------ Neutrino Core Light Antimatter Reactor > --- PROPULSION ------- Carbon-fiber Leg Flexi-carbon Leg Flexi-carbon Leg Flexi-carbon Leg VTOL Module VTOL Module > --- UTILITY ---------- Advanced Heat Sink Small Storage Unit Advanced Visual Processing Unit Advanced Signal Interpreter Transmission Jammer Layered Medium Armor Plating Hacking Suite Hacking Suite System Shield > --- WEAPON ----------- Beamcaster Vortex Cannon > --- INVENTORY -------- Micro Fission Core Armored Wheel Advanced Thermal Generator Beamcaster Disruptor Cannon Improved Remote Datajack Lance [Rating: 83] Favorites ----------- Power Improved Deuterium Engine Engine Improved Deuterium Engine Power Core Micro Fission Core Reactor Light Antimatter Reactor Propulsion VTOL Module Leg Flexi-carbon Leg Wheel Armored Wheel Hover Unit Backup Propulsion III Flight Unit VTOL Module Utility Hacking Suite Device Advanced Heat Sink Storage Small Storage Unit Processor Advanced Visual Processing Unit Hackware Hacking Suite Protection Improved Utility Shielding Weapon Cooled Plasma Cannon Energy Gun Beamcaster Energy Cannon Cooled Plasma Cannon Ballistic Gun Light Assault Rifle Launcher EMP Blaster Special Weapon Improved Remote Datajack Piercing Weapon Lance Build | -11 -10 -10 -10 -9 -8 -7 -6 -6 -5 -5 -5 -5 -4 -4 ------- Run | Yrd Mat Min Exi Min Mat Fac Fac Ext Fac Upp Upp War Pro Fac Slots Evolved 12 | . . . . . 4 2 2 . 2 . . . . 2 Power 1 | . . . . . . . . . . . . . . 1 Propulsion 4 | . . . . . 2 2 . . . . . . . . Utility 7 | . . . . . 2 . 2 . 2 . . . . 1 Weapon . | . . . . . . . . . . . . . . . Parts Attached 102 | 6 6 9 1 . 15 8 10 . 12 5 2 8 5 15 Power 12 | 1 1 2 . . 1 1 . . 3 1 . . 1 1 Engine 5 | 1 . 2 . . . 1 . . 1 . . . . . Core 6 | . 1 . . . 1 . . . 2 1 . . 1 . Reactor 1 | . . . . . . . . . . . . . . 1 Propulsion 36 | 2 1 3 . . 8 3 2 . 6 1 1 4 3 2 Treads . | . . . . . . . . . . . . . . . Leg 13 | 2 1 3 . . . . . . . . . 4 1 2 Wheel 1 | . . . . . . . . . . . 1 . . . Hover 4 | . . . . . 2 . . . 2 . . . . . Flight 18 | . . . . . 6 3 2 . 4 1 . . 2 . Utility 27 | 1 1 2 . . 3 . 7 . 2 2 . 1 . 8 Device 12 | . 1 1 . . 1 . 3 . 1 1 . . . 4 Storage 1 | 1 . . . . . . . . . . . . . . Processor 5 | . . . . . 1 . 1 . . 1 . 1 . 1 Hackware 6 | . . 1 . . 1 . 2 . 1 . . . . 1 Protection 3 | . . . . . . . 1 . . . . . . 2 Artifact . | . . . . . . . . . . . . . . . Weapon 27 | 2 3 2 1 . 3 4 1 . 1 1 1 3 1 4 Energy Gun 11 | 1 2 1 . . 2 2 . . . . . 1 . 2 Energy Cannon 8 | . . . 1 . . 2 1 . . 1 . 2 1 . Ballistic Gun 3 | 1 1 . . . 1 . . . . . . . . . Ballistic Cannon . | . . . . . . . . . . . . . . . Launcher 1 | . . 1 . . . . . . . . . . . . Special Weapon 1 | . . . . . . . . . 1 . . . . . Impact Weapon . | . . . . . . . . . . . . . . . Slashing Weapon . | . . . . . . . . . . . . . . . Piercing Weapon 3 | . . . . . . . . . . . 1 . . 2 Special Melee Weapon . | . . . . . . . . . . . . . . . Unidentified Prototypes 7 | . . 1 . . 2 2 1 . . . . 1 . . Corrupted Parts 1 | . . . . . . . . . . . . . 1 . System Corruption 2 | . . . . . . . . . . . . . 2 . Parts Lost 46 | . 1 1 . . . 1 1 1 9 6 4 . 1 21 Power 5 | . . . . . . . . . 2 1 . . . 2 Propulsion 24 | . . 1 . . . . 1 1 7 4 1 . 1 8 Utility 12 | . . . . . . . . . . 1 2 . . 9 Weapon 5 | . 1 . . . . 1 . . . . 1 . . 2 Highest Loss Streak 14 | . 1 1 . . . 1 1 1 3 3 4 . 1 14 To Critical Strikes . | . . . . . . . . . . . . . . . Average Backups 7 | 2 7 7 8 8 7 7 7 7 7 7 7 6 8 7 Power 1 | . 1 . 1 1 1 1 1 1 1 1 1 1 1 . Propulsion 1 | 1 2 2 3 3 1 . 1 . . . . . 1 . Utility 2 | . . 1 1 1 2 3 4 2 3 3 2 1 1 1 Weapon 2 | . . 1 2 2 1 1 1 3 2 1 1 3 3 3 Tool/Special . | . . . . . . . . . . . . . . . Unused Backups 21 | . 5 . 1 1 . 4 5 . 3 . 1 1 . . Power 3 | . 2 . . . . . . . 1 . . . . . Propulsion 3 | . 2 . . 1 . . . . . . . . . . Utility 6 | . . . . . . 2 3 . . . 1 . . . Weapon 6 | . . . . . . 1 2 . 2 . . 1 . . Tool/Special 3 | . 1 . 1 . . 1 . . . . . . . . Average Slot Usage (%) 86 | . 96 99 80 85 94 99 92 93 76 64 52 68 99 83 Engine 3 | . 2 10 14 14 . 5 6 6 1 . . . . . Core 3 | . 11 3 . . 8 1 . . 1 4 . 5 5 4 Leg 9 | . 28 27 28 28 . . . . . . . 1 23 10 Flight 16 | . . . . . 35 45 37 40 19 10 4 . 6 7 Device 4 | . 10 5 . . . . 2 . 4 . 5 5 5 13 Storage 7 | . 14 14 14 14 9 7 6 6 5 5 5 5 5 4 Processor 8 | . . . . . 8 7 11 6 5 5 11 15 17 10 Hackware 14 | . . 8 14 14 16 15 17 20 22 22 17 17 17 9 Protection 1 | . . . . . . . 1 6 5 5 4 . . 4 Energy Gun 3 | . 9 3 1 . 14 12 . . . . . . 5 4 Energy Cannon 3 | . . . 6 14 . 1 7 6 2 2 . . 5 3 Ballistic Gun 3 | . 18 24 1 . . . . . . . . . . . Peak Build Rating 83 | 6 11 20 22 22 28 39 51 51 62 57 38 72 73 83 Average Rating 40 | 4 9 11 18 22 25 32 45 50 51 45 34 46 70 67 On Entrance 34 | . 6 10 20 22 22 28 39 51 49 57 34 38 71 70 Naked Turns . | . . . . . . . . . . . . . . . Heaviest Build 62 | 13 15 21 24 24 16 28 29 25 26 20 15 25 39 62 Greatest Support 75 | 20 20 25 25 25 17 29 33 32 32 16 12 75 75 75 Greatest Overweight (x) 8 | . . . . . . . 8 . 1 6 1 2 8 2 Average Overweight (x) . | . . . . . . . . . . . . . . . Largest Inventory Capacity 8 | 8 8 8 8 8 8 8 8 8 8 8 8 8 8 8 Average Capacity 7 | 6 8 7 8 8 8 8 8 8 8 8 8 8 8 7 Most Carried 8 | 5 8 8 8 8 8 8 8 8 8 8 8 8 8 8 Average Carried 7 | 3 7 7 7 7 7 7 7 7 7 7 7 6 8 7 Final Capacity 8 | 8 8 8 8 8 8 8 8 8 8 8 8 8 8 5 Final Carried 8 | 4 8 8 8 8 8 8 8 7 8 8 3 8 8 5 Class Distribution -------------------- 34% | Hacker-Sprinter 26% | Scavenger-Mutant 17% | Hacker-Mutant 14% | Mutant 6% | Hacker-Scout Dominant Class ---------------- Mutant | -10/Materials Mutant | -10/Mines Scavenger-Mutant | -10/Exiles Scavenger-Mutant | -9/Mines Hacker-Sprinter | -8/Materials Hacker-Sprinter | -7/Factory Hacker-Sprinter | -6/Factory Hacker-Sprinter | -6/Extension Hacker-Sprinter | -5/Factory Hacker-Mutant | -5/Upper Caves Hacker-Mutant | -5/Upper Caves Hacker-Mutant | -5/Warlord Scavenger-Mutant | -4/Proximity Caves Scavenger-Mutant | -4/Factory Resources | -11 -10 -10 -10 -9 -8 -7 -6 -6 -5 -5 -5 -5 -4 -4 ----------- Run | Yrd Mat Min Exi Min Mat Fac Fac Ext Fac Upp Upp War Pro Fac Matter Collected 1760 | 260 136 236 . 15 40 215 157 60 155 70 . 202 25 189 Remotely . | . . . . . . . . . . . . . . . Salvage Created 2376 | . 232 246 . 39 40 263 199 277 227 212 . . 129 512 Parts 128 | . 21 19 . 3 1 12 8 12 21 10 . . 9 12 Haulers Intercepted 1 | . . . . . . 1 . . . . . . . . Recyclers Shooed 2 | . . 1 . . . 1 . . . . . . . . Parts Field Recycled . | . . . . . . . . . . . . . . . Retrieved Matter . | . . . . . . . . . . . . . . . Parts Self-Destructed 20 | . . . . . . . . . . 12 2 . 6 . Prevented 5 | . . . . . . . . . . . 3 . 2 . Kills | -11 -10 -10 -10 -9 -8 -7 -6 -6 -5 -5 -5 -5 -4 -4 ------- Run | Yrd Mat Min Exi Min Mat Fac Fac Ext Fac Upp Upp War Pro Fac Combat Hostiles Destroyed 49 | . 4 9 . 3 . . 3 2 6 8 . . 5 9 Melee 2 | . . . . . . . . . . . . . . 2 Guns 14 | . 4 6 . . . . . . . . . . 3 1 Cannons 27 | . . . . 3 . . 3 2 3 8 . . 2 6 AOE 6 | . . 3 . . . . . . 3 . . . . . Classes Destroyed 13 | . 3 2 . . . 3 2 . 2 . . . . 1 Worker 1 | . . . . . . . . . 1 . . . . . Builder 3 | . . . . . . 1 . . 2 . . . . . Tunneler 1 | . . . . . . . . . 1 . . . . . Hauler 1 | . . . . . . 1 . . . . . . . . Recycler 3 | . . . . . . 1 . 1 . . . . . 1 Operator 6 | . 2 . . . . 1 1 . 1 . . . . 1 Watcher 8 | . 3 . . . 1 3 . . 1 . . . . . Swarmer 27 | . . 6 . 3 . . . . 4 7 . . 4 3 Grunt 13 | . 4 2 . . . . 1 1 . . . . . 5 Brawler 1 | . . . . . . . 1 . . . . . . . Duelist 1 | . . . . . . . . . . . . . . 1 Sentry 3 | . . 1 . . . . . 1 . . . . 1 . Programmer 4 | . . . . . . . 1 . 2 1 . . . . Best Kill Streak 4 | . 2 3 . 3 1 4 2 2 4 4 . . 4 4 Combat Bots Only 4 | . 1 3 . 3 . . 2 1 3 4 . . 4 3 Max Kills in Single Turn 4 | . 1 2 . 1 1 2 1 1 4 1 . . 2 1 Gunslinging . | . . . . . . . . . . . . . . . Exploded 2 | . . 2 . . . . . . 2 . . . . . Melee 1 | . . . . . . . . . . . . . . 1 Uniques/NPCs Destroyed . | . . . . . . . . . . . . . . . Combat | -11 -10 -10 -10 -9 -8 -7 -6 -6 -5 -5 -5 -5 -4 -4 -------- Run | Yrd Mat Min Exi Min Mat Fac Fac Ext Fac Upp Upp War Pro Fac Hostile Shots Fired 521 | . 25 46 . 5 12 . 20 17 75 54 19 . 30 218 Missed 179 | . 5 14 . 1 7 . 10 7 40 20 6 . 13 56 Hits 342 | . 20 32 . 4 5 . 10 10 35 34 13 . 17 162 Melee 1 | . . . . . . . . . . . . . . 1 Projectile 341 | . 20 32 . 4 5 . 10 10 35 34 13 . 17 161 AOE 1 | . . . . . . . . . 1 . . . . . Critical Strikes 9 | . . . . . . . . . 1 . . . . 8 Damage Taken 6157 | . 278 327 . 32 93 93 165 192 1125 489 224 . 313 2826 Core 2260 | . 52 75 . . 18 26 42 27 602 151 93 . 17 1157 Absorbed by Shields 60 | . . . . . . . . . 60 . . . . . Redirected to Shielding 102 | . . . . . . . . . 24 44 34 . . . Core Remaining (%) 74 | 100 . . . 49 96 96 . 91 . . . . 13 . Volleys Fired 223 | . 37 27 . 3 1 12 29 16 17 29 . 11 11 30 Largest 2 | . 2 2 . 1 1 2 1 1 1 1 . 1 2 2 Hottest 156 | . 85 95 . 120 50 100 105 105 105 35 . 7 156 156 Shots Fired 323 | . 73 51 . 3 1 21 29 16 17 29 . 11 18 54 Gun 180 | . 73 48 . . 1 21 . . . . . . 7 30 Cannon 129 | . . . . 3 . . 29 16 17 29 . . 11 24 Launcher 3 | . . 3 . . . . . . . . . . . . Special 11 | . . . . . . . . . . . . 11 . . Kinetic 87 | . 44 43 . . . . . . . . . . . . Thermal 165 | . 29 5 . 3 . . 29 16 17 29 . . 7 30 Explosive . | . . . . . . . . . . . . . . . Electromagnetic 39 | . . 3 . . 1 21 . . . . . . 6 8 Entropic 21 | . . . . . . . . . . . . . 5 16 Robot Hit Streak 16 | . 8 8 . 7 8 9 6 4 2 5 . 8 12 16 Robot Miss Streak 11 | . 11 6 . . . 3 2 2 2 5 . 1 1 3 Penetration Max . | . . . . . . . . . . . . . . . Secondary Targets . | . . . . . . . . . . . . . . . Shots Hit Robots 194 | . 46 27 . 3 1 12 8 9 8 14 . 10 13 43 Core Hits 103 | . 33 12 . 3 1 6 6 3 7 8 . . 6 18 Critical Kills . | . . . . . . . . . . . . . . . Critical Parts Destroyed 2 | . 1 1 . . . . . . . . . . . . Critical Strikes 13 | . 1 2 . . . . . . . . . . 1 9 Burn 5 | . . 1 . . . . . . . . . . . 4 Destroy 2 | . 1 1 . . . . . . . . . . . . Impale 1 | . . . . . . . . . . . . . . 1 Sunder 5 | . . . . . . . . . . . . . 1 4 Melee Attacks 15 | . . . . . . . . . . . . 3 . 12 Impact . | . . . . . . . . . . . . . . . Slashing . | . . . . . . . . . . . . . . . Piercing 15 | . . . . . . . . . . . . 3 . 12 Sneak Attacks . | . . . . . . . . . . . . . . . Combat Hostiles . | . . . . . . . . . . . . . . . Follow-up Attacks . | . . . . . . . . . . . . . . . Damage Inflicted 6500 | . 458 482 . 102 32 552 681 568 1005 462 . . 519 1639 Guns 1746 | . 458 333 . . 32 311 . . . . . . 105 507 Cannons 3509 | . . . . 102 . . 555 568 447 462 . . 414 961 Explosions 1074 | . . 149 . . . 241 126 . 558 . . . . . Melee 142 | . . . . . . . . . . . . . . 142 Ramming 29 | . . . . . . . . . . . . . . 29 Kinetic 435 | . 187 248 . . . . . . . . . . . . Thermal 3901 | . 271 85 . 102 . 241 555 568 1005 462 . . 105 507 Explosive . | . . . . . . . . . . . . . . . Electromagnetic 788 | . . 149 . . 32 311 126 . . . . . 61 109 Impact . | . . . . . . . . . . . . . . . Slashing . | . . . . . . . . . . . . . . . Piercing 142 | . . . . . . . . . . . . . . 142 Entropic 1205 | . . . . . . . . . . . . . 353 852 Highest Corruption 7 | . 2 2 2 2 . . . . . . . . 2 7 Average Corruption 2 | . 2 2 2 2 . . . . . . . . 2 4 Corruption Purged . | . . . . . . . . . . . . . . . Corruption Blocked . | . . . . . . . . . . . . . . . Effects 17 | . 1 8 2 . . . . . . . . . 5 1 Message Errors 4 | . . 1 . . . . . . . . . . 3 . Matter Fused 4 | . 1 2 1 . . . . . . . . . . . Heat Flow Errors 2 | . . 2 . . . . . . . . . . . . Energy Discharges 2 | . . 1 . . . . . . . . . . . 1 Data Loss (minor) 1 | . . . 1 . . . . . . . . . . . Data Loss (major) 2 | . . 1 . . . . . . . . . . 1 . Misfires 1 | . . . . . . . . . . . . . 1 . Alerts 1 | . . 1 . . . . . . . . . . . . Overload Shots 56 | . . . . . . . 29 16 11 . . . . . Effects 4 | . . . . . . . 3 . 1 . . . . . Energy Bleed 3 | . . . . . . . 2 . 1 . . . . . Heat Surge 1 | . . . . . . . 1 . . . . . . . Overflow Damage 794 | . . 7 . . . 59 69 104 443 18 . . 24 70 Projectiles 346 | . . . . . . . 69 104 66 18 . . 24 65 Explosions 443 | . . 7 . . . 59 . . 377 . . . . . Melee 5 | . . . . . . . . . . . . . . 5 Knockbacks . | . . . . . . . . . . . . . . . Impact . | . . . . . . . . . . . . . . . Kinetic . | . . . . . . . . . . . . . . . Secondary . | . . . . . . . . . . . . . . . Self-Inflicted Damage 598 | . . 19 . . . 13 37 . 517 . . . . 12 Shots 9 | . . 1 . . . 1 2 . 5 . . . . . Rammed 11 | . . . . . . . . . . . . . . 11 Targets Rammed 11 | . . . . . . . . . . . . . . 11 Kicked . | . . . . . . . . . . . . . . . Crushed . | . . . . . . . . . . . . . . . Highest Temperature 379 | . 101 213 . 252 19 323 304 379 198 . . . 24 108 Average Temperature 87 | . 27 95 . 126 9 107 88 114 69 . . . 10 26 Received Heat Transfer 750 | . 156 63 . . 45 . 21 33 32 . 36 . 36 328 Effects 5 | . . . . . . 2 2 1 . . . . . . Shutdowns 1 | . . . . . . . . 1 . . . . . . Energy Bleed 2 | . . . . . . . 2 . . . . . . . Interference 2 | . . . . . . 2 . . . . . . . . Siege Activations . | . . . . . . . . . . . . . . . Martial Activations . | . . . . . . . . . . . . . . . Shielding Activations . | . . . . . . . . . . . . . . . Robots Disrupted 1 | . . . . . . . . . . . . . . 1 Combat Hostiles . | . . . . . . . . . . . . . . . Robots Corrupted . | . . . . . . . . . . . . . . . Combat Hostiles . | . . . . . . . . . . . . . . . Parts Fried 4 | . . 1 . . . 2 . . . . . . . 1 Impact Corruptions . | . . . . . . . . . . . . . . . Robots Melted . | . . . . . . . . . . . . . . . Combat Hostiles . | . . . . . . . . . . . . . . . Parts Melted 9 | . . . . . . . 2 1 3 1 . . 1 1 Heat Transferred 5551 | . 410 222 . 240 . 250 640 720 1000 700 . . 185 1184 Parts Sabotaged . | . . . . . . . . . . . . . . . Parts Stolen . | . . . . . . . . . . . . . . . Parts Stripped . | . . . . . . . . . . . . . . . Power Chain Reactions 2 | . . . . . . 2 . . . . . . . . Alert | -11 -10 -10 -10 -9 -8 -7 -6 -6 -5 -5 -5 -5 -4 -4 ------- Run | Yrd Mat Min Exi Min Mat Fac Fac Ext Fac Upp Upp War Pro Fac Maximum Alert Level 2 | . . . . . . . 1 1 2 . . . . . Low Security (%) 94 | 100 100 100 . 100 100 100 99 99 16 . . . . 100 Level 1 3 | . . . . . . . . . 57 . . . . . Level 2 1 | . . . . . . . . . 26 . . . . . Level 3 . | . . . . . . . . . . . . . . . Level 4 . | . . . . . . . . . . . . . . . Level 5 . | . . . . . . . . . . . . . . . High Security . | . . . . . . . . . . . . . . . Max Security . | . . . . . . . . . . . . . . . Peak Influence 595 | . 35 100 . 70 15 24 220 202 595 . . . . 63 Initial 107 | . . . . . 15 . . 107 88 . . . . . Average 46 | . 6 23 . 52 1 3 42 128 345 . . . . 9 Influence Increases 2554 | . 171 210 . 70 28 82 366 225 795 180 60 . 110 257 Destroy 0b10 Robot/C 1060 | . 80 180 . 60 . . 60 120 120 160 . . 100 180 Destroy 0b10 Robot/NC 115 | . 25 . . . 5 35 5 5 30 . . . . 10 Destroy Leader 178 | . 26 30 . 10 2 8 20 10 22 20 . . 10 20 Allied During Kill 15 | . . . . . . . . 15 . . . . . . Successful Hack 154 | . 10 . . . 6 12 52 5 64 . . . . 5 Disable Machine 225 | . . . . . . . 60 . 150 . . . . 15 Destroy Structure 207 | . . . . . . 12 19 10 154 . . . . 12 Partial Spotted 120 | . . . . . . 15 75 15 15 . . . . . Lose Combat Pursuer 480 | . 30 . . . 15 . 75 45 240 . 60 . . 15 Influence Decreases 2538 | . 171 206 4 30 68 82 146 263 398 473 235 111 110 241 Entered New Map 617 | . . . 4 . 25 . . 113 94 215 55 111 . . Time Decay 1606 | . 166 196 . 30 43 82 146 120 214 198 140 . 100 171 Lost Part 295 | . 5 10 . . . . . 10 90 60 40 . 10 70 Lost Ally 20 | . . . . . . . . 20 . . . . . . Squads Dispatched 17 | . 1 . . . . 2 6 2 2 . . . . 4 Investigation 6 | . 1 . . . . . 1 2 1 . . . . 1 Extermination 9 | . . . . . . 1 5 . 1 . . . . 2 Reinforcement 2 | . . . . . . 1 . . . . . . . 1 Assault . | . . . . . . . . . . . . . . . Garrison . | . . . . . . . . . . . . . . . Intercept . | . . . . . . . . . . . . . . . Searches Triggered . | . . . . . . . . . . . . . . . Construction Impeded 1 | . . . . . . 1 . . . . . . . . Haulers Reinforced . | . . . . . . . . . . . . . . . Active Scanning Responses . | . . . . . . . . . . . . . . . Cargo Convoy Interrupts . | . . . . . . . . . . . . . . . Stealth | -11 -10 -10 -10 -9 -8 -7 -6 -6 -5 -5 -5 -5 -4 -4 --------- Run | Yrd Mat Min Exi Min Mat Fac Fac Ext Fac Upp Upp War Pro Fac Distress Signals 5 | . . . . . . . 1 2 2 . . . . . Communications Jammed 7 | . . . . . . . . . . . . . . 7 Distress Signals 7 | . . . . . . . . . . . . . . 7 Times Spotted 149 | . 16 10 . 3 8 6 15 11 37 8 5 . 5 25 Peak Tracking Total 13 | . 3 3 . 2 6 1 8 4 13 4 4 . 4 12 Tactical Retreats 13 | . 2 . . . 1 . 3 2 3 . 1 . . 1 Traps | -11 -10 -10 -10 -9 -8 -7 -6 -6 -5 -5 -5 -5 -4 -4 ------- Run | Yrd Mat Min Exi Min Mat Fac Fac Ext Fac Upp Upp War Pro Fac Traps Triggered 13 | . 2 . . . . 3 . 1 5 . . . . 2 Indirectly . | . . . . . . . . . . . . . . . Trap Hack Attempts . | . . . . . . . . . . . . . . . Triggered . | . . . . . . . . . . . . . . . Disarmed . | . . . . . . . . . . . . . . . Reprogrammed . | . . . . . . . . . . . . . . . Reused . | . . . . . . . . . . . . . . . Traps Extracted . | . . . . . . . . . . . . . . . Installed . | . . . . . . . . . . . . . . . Triggered . | . . . . . . . . . . . . . . . Machines | -11 -10 -10 -10 -9 -8 -7 -6 -6 -5 -5 -5 -5 -4 -4 ---------- Run | Yrd Mat Min Exi Min Mat Fac Fac Ext Fac Upp Upp War Pro Fac Machines Disabled 15 | . . . . . . . 4 . 10 . . . . 1 Max in Single Turn 5 | . . . . . . . 4 . 5 . . . . 1 Garrison Access 3 | . . . . . . . 2 . 1 . . . . . Machines Repaired . | . . . . . . . . . . . . . . . Machines Dismantled . | . . . . . . . . . . . . . . . Machines Sabotaged . | . . . . . . . . . . . . . . . Overloaded Fab Kills . | . . . . . . . . . . . . . . . Hacking | -11 -10 -10 -10 -9 -8 -7 -6 -6 -5 -5 -5 -5 -4 -4 --------- Run | Yrd Mat Min Exi Min Mat Fac Fac Ext Fac Upp Upp War Pro Fac Machines Accessed 53 | . 4 1 1 . 7 2 14 5 5 . . 10 . 4 Terminals 31 | . 4 . . . 4 2 9 5 3 . . . . 4 Fabricators 3 | . . . . . . . 2 . 1 . . . . . Repair Stations . | . . . . . . . . . . . . . . . Recycling Units 2 | . . . . . 2 . . . . . . . . . Scanalyzers . | . . . . . . . . . . . . . . . Garrison Access 5 | . . . . . 1 . 3 . 1 . . . . . Total Hacks 145 | . 11 1 1 . 25 3 32 16 27 . . 15 . 14 Successful 68 | . 3 1 1 . 10 1 13 7 11 . . 15 . 6 Failed 77 | . 8 . . . 15 2 19 9 16 . . . . 8 Catastrophic 11 | . 2 . . . 4 1 2 . 2 . . . . . Database Lockouts . | . . . . . . . . . . . . . . . Manual 36 | . 5 . 1 . 8 1 7 3 8 . . 2 . 1 Terminals 104 | . 11 . . . 18 3 20 16 22 . . . . 14 Fabricators 10 | . . . . . . . 6 . 4 . . . . . Repair Stations . | . . . . . . . . . . . . . . . Recycling Units 5 | . . . . . 5 . . . . . . . . . Scanalyzers . | . . . . . . . . . . . . . . . Garrison Access 9 | . . . . . 2 . 6 . 1 . . . . . Terminal Hacks 56 | . 2 1 1 . 6 1 9 7 8 . . 15 . 6 Record 14 | . . . . . . . . . . . . 14 . . Part Schematic 1 | . . . . . . . 1 . . . . . . . Prototype ID Bank 6 | . 1 . . . 1 . 2 1 1 . . . . . Open Door 6 | . . 1 . . . . 1 3 . . . 1 . . Branch Access Points 5 | . . . . . 1 . 1 1 1 . . . . 1 Terminal Index 2 | . . . . . . . . 1 1 . . . . . Fabricator Index 1 | . . . . . . . 1 . . . . . . . Locate Traps 10 | . 1 . . . 2 1 2 . 2 . . . . 2 Maintenance Status 1 | . . . . . 1 . . . . . . . . . Recall Reinforcements 1 | . . . . . . . . . . . . . . 1 Registered Components 2 | . . . . . . . . 1 . . . . . 1 Zone Layout 6 | . . . . . 1 . 1 . 3 . . . . 1 Proto ID Catalog 1 | . . . 1 . . . . . . . . . . . Fabricator Hacks 4 | . . . . . . . 2 . 2 . . . . . Load Schematic 2 | . . . . . . . 1 . 1 . . . . . Build 2 | . . . . . . . 1 . 1 . . . . . Repair Station Hacks . | . . . . . . . . . . . . . . . Recycling Unit Hacks 3 | . . . . . 3 . . . . . . . . . Report Inventory 2 | . . . . . 2 . . . . . . . . . Retrieve Components 1 | . . . . . 1 . . . . . . . . . Scanalyzer . | . . . . . . . . . . . . . . . Garrison Access Hacks 3 | . . . . . . . 2 . 1 . . . . . Seal Access 3 | . . . . . . . 2 . 1 . . . . . Unauthorized Hacks 2 | . 1 . . . 1 . . . . . . . . . Terminals 1 | . 1 . . . . . . . . . . . . . Assimilate 1 | . 1 . . . . . . . . . . . . . Fabricators . | . . . . . . . . . . . . . . . Repair Stations . | . . . . . . . . . . . . . . . Recycling Units 1 | . . . . . 1 . . . . . . . . . Recyclers 1 | . . . . . 1 . . . . . . . . . Scanalyzers . | . . . . . . . . . . . . . . . Garrison Access . | . . . . . . . . . . . . . . . Data Cores Recovered 3 | . . . . . . 1 1 . 1 . . . . . Used 2 | . . . . . . . 1 . 1 . . . . . Hacking Detections 34 | . 3 . . . 5 1 13 4 4 . . . . 4 Full Trace Events 7 | . 3 . . . . . 1 1 1 . . . . 1 Feedback Events . | . . . . . . . . . . . . . . . Feedback Blocked . | . . . . . . . . . . . . . . . Robot Schematics Acquired . | . . . . . . . . . . . . . . . Robots Built . | . . . . . . . . . . . . . . . Authchips . | . . . . . . . . . . . . . . . Time . | . . . . . . . . . . . . . . . Total Robot Build Rating . | . . . . . . . . . . . . . . . Part Schematics Acquired 1 | . . . . . . . 1 . . . . . . . Parts Built 1 | . . . . . . . 1 . . . . . . . Authchips . | . . . . . . . . . . . . . . . Time 111 | . . . . . . . 67 . 44 . . . . . Total Part Build Rating 4 | . . . . . . . 4 . . . . . . . Parts Repaired . | . . . . . . . . . . . . . . . Time . | . . . . . . . . . . . . . . . Parts Recycled . | . . . . . . . . . . . . . . . Recycled Matter . | . . . . . . . . . . . . . . . Retrieved Matter . | . . . . . . . . . . . . . . . Retrieved Components 2 | . . . . . 2 . . . . . . . . . Parts Scanalyzed . | . . . . . . . . . . . . . . . Part Schematics Acquired . | . . . . . . . . . . . . . . . Parts Damaged . | . . . . . . . . . . . . . . . Bothacking | -11 -10 -10 -10 -9 -8 -7 -6 -6 -5 -5 -5 -5 -4 -4 ------------ Run | Yrd Mat Min Exi Min Mat Fac Fac Ext Fac Upp Upp War Pro Fac Used RIF Installer . | . . . . . . . . . . . . . . . Robots Hacked 6 | . . . . . . . . . . . . 6 . . Non-combat . | . . . . . . . . . . . . . . . Combat 6 | . . . . . . . . . . . . 6 . . Robot Hacks Applied 8 | . . . . . . . . . . . . 8 . . parse_system 8 | . . . . . . . . . . . . 8 . . Relay Couplers Released . | . . . . . . . . . . . . . . . Fabnet Peak Effective % . | . . . . . . . . . . . . . . . Robots Rewired . | . . . . . . . . . . . . . . . Allies Hacked . | . . . . . . . . . . . . . . . Hacks Repelled . | . . . . . . . . . . . . . . . Allies | -11 -10 -10 -10 -9 -8 -7 -6 -6 -5 -5 -5 -5 -4 -4 -------- Run | Yrd Mat Min Exi Min Mat Fac Fac Ext Fac Upp Upp War Pro Fac Total Allies 2 | . . . . . . . . 2 . . . . . . Largest Group 2 | . . . . . . . . 2 . . . . . . Highest-Rated Group 70 | . . . . . . . . 70 . . . . . . Highest-Rated Ally 39 | . . . . . . . . 39 . . . . . . Total Orders . | . . . . . . . . . . . . . . . Ally Attacks 22 | . . . . . . . . 22 . . . . . . Total Damage 295 | . . . . . . . . 295 . . . . . . Kills 4 | . . . . . . . . 4 . . . . . . Allies Corrupted . | . . . . . . . . . . . . . . . Allies Melted 2 | . . . . . . . . . . . . 2 . . Intel | -11 -10 -10 -10 -9 -8 -7 -6 -6 -5 -5 -5 -5 -4 -4 ------- Run | Yrd Mat Min Exi Min Mat Fac Fac Ext Fac Upp Upp War Pro Fac Active Infowar (turns) 8286 | . . . . . 597 389 2570 241 443 411 284 1420 965 966 Optics 8286 | . . . . . 597 389 2570 241 443 411 284 1420 965 966 Terrain 639 | . . . . . . . 639 . . . . . . . Cloaking 1 | . . . . . . . . . . 1 . . . . Jamming 915 | . . . . . . . . . . . . . . 915 ECM 735 | . . . . . . . . . . . . . . 735 Robot Analysis Total . | . . . . . . . . . . . . . . . Derelict Logs Recovered 7 | . . 1 . . . . . . . 3 1 . 2 . Drone Launches . | . . . . . . . . . . . . . . . Drone Recoveries . | . . . . . . . . . . . . . . . Exploration | -11 -10 -10 -10 -9 -8 -7 -6 -6 -5 -5 -5 -5 -4 -4 ------------- Run | Yrd Mat Min Exi Min Mat Fac Fac Ext Fac Upp Upp War Pro Fac Turns Passed 10769 | 82 951 858 465 78 646 389 2570 241 443 411 284 1420 965 966 Spaces Moved 9805 | 64 625 592 385 44 621 1048 1990 303 982 607 282 1210 762 290 Core 51 | 14 . . . . . . 1 . . 2 . . . 34 Treads . | . . . . . . . . . . . . . . . Legs 2767 | 50 625 592 385 44 . . . . . . . 55 761 255 Wheels 1160 | . . . . . . . . . . . 7 1152 . 1 Hover 10 | . . . . . . . . . 7 . . 3 . . Flight 5817 | . . . . . 621 1048 1989 303 975 605 275 . 1 . Fastest Speed 17 | 50 120 120 120 120 28 22 17 18 18 30 55 105 120 50 Average Speed 65 | 104 120 120 120 120 28 22 21 19 28 55 56 105 120 158 Slowest Speed 720 | 120 120 120 120 120 31 26 450 20 110 350 105 165 720 190 Overloaded Moves 201 | . . . . . . . 148 25 28 . . . . . Propulsion Burnouts . | . . . . . . . . . . . . . . . Robots Hopped 35 | . . . . . 2 7 16 3 7 . . . . . Potential Cave-ins 1 | . . . . . . . . . . . . 1 . . Cave-ins Triggered . | . . . . . . . . . . . . . . . Exploration Rate (%) 47 | 4 53 87 62 11 53 34 33 43 29 68 45 95 93 8 Regions Visited 14 Branch Regions 8 Pre-discovered Areas 2 | . . . . . . . . . . . 1 . 1 . Known Exits Taken 6 | . . . . . . . 1 . 1 1 1 1 1 . Unknown Exits Taken 8 | 1 1 1 1 1 1 1 . 1 . . . . . . Scrap Searched 7 | . . 1 . . . . . . . 3 2 . 1 . Spaces Dug 28 | . . . . . . . 19 2 2 . . 3 . 2 Terrain Destroyed 137 | . . . . . . 10 20 6 78 14 . 3 . 6 Melee 5 | . . . . . . . . . . . . 3 . 2 Projectile 49 | . . . . . . . 20 6 5 14 . . . 4 AOE 83 | . . . . . . 10 . . 73 . . . . . Terrain Rammed . | . . . . . . . . . . . . . . . Walls Destroyed . | . . . . . . . . . . . . . . . Machines Disabled . | . . . . . . . . . . . . . . . Actions | -11 -10 -10 -10 -9 -8 -7 -6 -6 -5 -5 -5 -5 -4 -4 --------- Run | Yrd Mat Min Exi Min Mat Fac Fac Ext Fac Upp Upp War Pro Fac Total 13818 | 79 762 693 389 67 1085 1170 4081 465 1124 648 407 1340 787 721 Wait 3400 | . 75 42 . 17 417 78 2043 130 42 1 119 94 5 337 Move 9722 | 63 624 591 384 43 616 1033 1958 296 967 606 281 1209 761 290 Hop 34 | . . . . . 2 7 15 3 7 . . . . . Pick Up 106 | 10 11 10 1 2 15 12 13 2 7 3 1 10 2 7 Fast Attach 31 | . 1 2 1 . 4 6 1 . 7 . . 4 1 4 Attach 57 | 6 1 3 . . 4 6 3 1 10 4 5 3 . 11 Detach 14 | . . . . . . . 1 . 8 1 . 1 . 3 Swap 55 | . 5 8 . . 10 5 7 . 1 3 . 2 5 9 Drop 83 | . 8 10 3 2 16 11 11 2 6 1 1 3 2 7 Fire 223 | . 37 27 . 3 1 12 29 16 17 29 . 11 11 30 Melee 15 | . . . . . . . . . . . . 3 . 12 Ram 11 | . . . . . . . . . . . . . . 11 Kick . | . . . . . . . . . . . . . . . Crush . | . . . . . . . . . . . . . . . Escape Stasis 67 | . . . . . . . . 15 52 . . . . . Rewire . | . . . . . . . . . . . . . . . Trap . | . . . . . . . . . . . . . . . Miscellaneous . | . . . . . . . . . . . . . . . Route ------- -11/Scrapyard -10/Materials (discovered 2 exits: [*Mat] / *Min) -10/Mines (discovered 3 exits: [*Mat x2] / *Exi) -10/Exiles -9/Mines -8/Materials -7/Factory -6/Factory (discovered 4 exits: Low x2 / *Ext x2) -6/Extension (discovered 2 exits: *Fac / Cet) -5/Factory (discovered 4 exits: *Fac x2 / *Upp x2) -5/Upper Caves -5/Upper Caves -5/Warlord -4/Proximity Caves -4/Factory (discovered 5 exits: Res x2 / Upp x2 / Arm) History --------- Turn | Location | Event 5 | -11/Scrapyard | Discovered new exit (range 15) 83 | -11/Scrapyard | Entered Materials 300 | -10/Materials | Build established: Mutant 453 | -10/Materials | Discovered new exit (range 16) 663 | -10/Materials | Discovered new exit (range 10) 1034 | -10/Materials | Entered Mines 1365 | -10/Mines | Found the Drone Emporium 1374 | -10/Mines | Found Prototype Device 1376 | -10/Mines | Identified Decoy Drone Bay 1429 | -10/Mines | Discovered new exit (range 6) 1675 | -10/Mines | Joined a pair of Derelicts in attacking an 0b10 outpost 1719 | -10/Mines | Core integrity fell below 50% 1826 | -10/Mines | Discovered new exit (range 8) 1827 | -10/Mines | Learned Materials terminal intel 1841 | -10/Mines | Build established: Scavenger-Mutant 1887 | -10/Mines | Deemed a non-threat by the Exiles lab entrance 1887 | -10/Mines | Discovered new exit (range 5) 1892 | -10/Mines | Entered Exiles 1922 | -10/Exiles | Met 8R-AWN 1943 | -10/Exiles | Met EX-HEX 2010 | -10/Exiles | Met EX-BIN 2023 | -10/Exiles | Aligned with FarCom system 2024 | -10/Exiles | Given EX-Vault access code 2053 | -10/Exiles | Opened EX-Vault 2084 | -10/Exiles | Warned to stay clear of 0b10 Research branches 2125 | -10/Exiles | Found Gui. Plasma Cannon 2302 | -10/Exiles | Met EX-DEC 2345 | -10/Exiles | Discovered new exit (range 12) 2357 | -10/Exiles | Left Exiles lab with Gui. Plasma Cannon 2357 | -10/Exiles | Entered Mines 2358 | -9/Mines | Assembled infested the area 2408 | -9/Mines | Discovered new exit (range 9) 2435 | -9/Mines | Entered Materials 2435 | -8/Materials | Evolved 4 slots: Propulsion x2, Utility x2 2436 | -8/Materials | Loaded intel: 12 terminal locations 2744 | -8/Materials | Build established: Hacker-Sprinter 3076 | -8/Materials | Discovered new exit (range 11) 3081 | -8/Materials | Entered Factory 3081 | -7/Factory | Evolved 2 slots: Propulsion x2 3347 | -7/Factory | Discovered new exit (range 10) 3470 | -7/Factory | Entered another Factory area 3470 | -6/Factory | Evolved 2 slots: Utility x2 3758 | -6/Factory | Build established: Hacker-Scout 4415 | -6/Factory | Build established: Hacker-Sprinter 5529 | -6/Factory | Identified exit to Lower Caves 5529 | -6/Factory | Identified exit to Extension 5579 | -6/Factory | Spotted B-75 Beast 5722 | -6/Factory | Fabricated Cld. VTOL Module? 6040 | -6/Factory | Entered Extension 6063 | -6/Extension | Identified exit to Cetus 6076 | -6/Extension | Rescued a captive Derelict 6146 | -6/Extension | Rescued a captive Derelict 6148 | -6/Extension | Rescued a captive Derelict 6274 | -6/Extension | Spotted B-75 Beast 6278 | -6/Extension | Spotted B-75 Beast 6281 | -6/Extension | Discovered new exit (range 3) 6281 | -6/Extension | Entered Factory 6281 | -5/Factory | Evolved 2 slots: Utility x2 6383 | -5/Factory | Lost 3 parts (1p2n) 6467 | -5/Factory | Lost 3 parts (1p2n) 6478 | -5/Factory | Identified exit to Upper Caves 6521 | -5/Factory | Discovered new exit (range 15) 6676 | -5/Factory | Core integrity fell below 50% 6705 | -5/Factory | Discovered new exit (range 19) 6709 | -5/Factory | Assembled infested ambush trap array 6724 | -5/Factory | Entered Upper Caves 6727 | -5/Upper Caves | Learned location of 2 exits from Factory 6741 | -5/Upper Caves | Learned Factory emergency access door positions 6789 | -5/Upper Caves | Encountered a Warlord checkpoint 6818 | -5/Upper Caves | Learned Factory non-interactive machine intel 6931 | -5/Upper Caves | Lost 3 parts (3n) 7102 | -5/Upper Caves | Lost 3 parts (1p1n1u) 7131 | -5/Upper Caves | Discovered new exit (range 8) 7134 | -5/Upper Caves | Identified exit to Upper Caves 7135 | -5/Upper Caves | Entered another Upper Caves area 7194 | -5/Upper Caves | Build established: Hacker-Mutant 7269 | -5/Upper Caves | Learned location of Armory (-4) 7298 | -5/Upper Caves | Discovered new exit (range 14) 7401 | -5/Upper Caves | Core integrity fell below 20% 7417 | -5/Upper Caves | Identified exit to Warlord 7419 | -5/Upper Caves | Entered Warlord 7442 | -5/Warlord | Lost 4 parts (1n2u1w) 7535 | -5/Warlord | Discovered new exit (range 9) 7544 | -5/Warlord | Identified exit to Proximity Caves 7664 | -5/Warlord | Learned Factory recycling unit intel 7664 | -5/Warlord | Learned Armory recycling unit intel 7664 | -5/Warlord | Learned Research fabricator intel 7664 | -5/Warlord | Learned Research repair station intel 7665 | -5/Warlord | Learned 4 Armory zone layouts 7665 | -5/Warlord | Learned 4 Access zone layouts 7667 | -5/Warlord | Learned Armory emergency access door positions 7873 | -5/Warlord | Met Warlord 7898 | -5/Warlord | Warlord's base attacked by MAIN.C 8066 | -5/Warlord | Found Prototype Energy Cannon 8067 | -5/Warlord | Identified Vortex Cannon 8071 | -5/Warlord | Found Vortex Cannon 8073 | -5/Warlord | Found Vortex Cannon 8248 | -5/Warlord | Warlord forces counterattacked 8573 | -5/Warlord | Warlord base infiltrated, sounded retreat 8574 | -5/Warlord | Enhanced Grunt warped into view 8574 | -5/Warlord | Enhanced Grunt warped into view 8574 | -5/Warlord | Enhanced Grunt warped into view 8574 | -5/Warlord | Enhanced Demolisher warped into view 8574 | -5/Warlord | Enhanced Demolisher warped into view 8574 | -5/Warlord | Enhanced Demolisher warped into view 8839 | -5/Warlord | Entered Proximity Caves 8841 | -4/Proximity Caves | Attracted the attention of an 0b10 checkpoint 8983 | -4/Proximity Caves | Learned location of Quarantine (-3) 9036 | -4/Proximity Caves | Build established: Scavenger-Mutant 9676 | -4/Proximity Caves | Learned Research machine intel 9777 | -4/Proximity Caves | Discovered new exit (range 14) 9794 | -4/Proximity Caves | Identified exit to Factory 9804 | -4/Proximity Caves | Entered Factory 9804 | -4/Factory | Evolved 2 slots: Power x1, Utility x1 9805 | -4/Factory | Identified exit to Research 9807 | -4/Factory | Loaded intel: 224 non-interactive machine locations 9808 | -4/Factory | Loaded intel: 8 recycling unit locations 9881 | -4/Factory | Lost 4 parts (3n1u) 10077 | -4/Factory | Identified exit to Upper Caves 10077 | -4/Factory | Identified exit to Armory 10734 | -4/Factory | Core integrity fell below 50% 10751 | -4/Factory | Lost 14 parts (2p4n7u1w) 10763 | -4/Factory | Core integrity fell below 20% 10770 | -4/Factory | Destroyed by Y-64 Sentinel with Wave Gun Last Messages --------------- 10734_ Connecting with Terminal... 10740_ Slug penetrates Wall. 10743_ Penetrated by Slug. 10743_ Slug penetrates Wall. 10744_ U-05 Engineer builds a Door. 10753_ Destroyed VTOL Module. 10756_ S-27 Virus suffers critical hit (Impale). 10756_ S-27 Virus destroyed. 10760_ Acquired 29 matter. 10761_ Slammed into H-77 Assassin. 10762_ Slug penetrates P-70 Sage. 10762_ Slug penetrates Wall. 10762_ Penetrated by Slug. 10762_ Imp. System Guard destroyed. 10762_ Slug penetrates G-73 Enforcer. 10762_ Penetrated by Slug. 10762_ Slammed into G-73 Enforcer. 10765_ Adv. Signal Interpreter broken. 10765_ Destabilizing: Short circuit. 10766_ Slammed into G-73 Enforcer. Map ----- +----------------------------------------------------+ | ?????????????????????????????????????????????????? | | ??????????"""""""""??????????????????????????????? | | ????????????????????????????????????????????????[? | | ??????????"""""""""??????????????????????????????? | | ?????????????????????????????????????????????????? | | ??????????"""""""""??????????????????????????????? | | ?????????????????????????????????????????????????? | | ?????????????????????????????????????????????????? | | ?????????????????????????????????????????????????? | | ????^??????????#############?????????????????????? | | ??????????????? ! #?????????????????????? | | ??????????????? w #?????????????????????? | | ???????????????? #?????????????????????? | | ^??????????"?"?""" """ """ #?????????????????????? | | """?"""????"Y"?""" """ """ #?????????????????????? | | """?"""????""" """ """ """s##????????????????????? | | """?"""??# hh % "#????????????????????? | | """?"""?????############h####????????????????????? | | ????????????# # p #?????????????????????? | | ????????????#"" # """ %#???????????????????+?? | | ????????????#"T /#h"""p%#?????????????????????? | | ????????????#"" # """g%#?????????????????????? | | ????????????# # """ #?????????????????????? | | ?""""?""""??# [ ! [# g #????????"""?"""??????? | | ?""""?""""??# ####+###????????"""?"""??????? | | ?""""?""""??#####/#/## @ #????????"""?"""??????? | | ?""""?""""??????# gY k #?????????????????????? | | ?""""?""""??????# #????????"""?"""?""???? | | ?""""?""""??????# #????????"""?"""?Y"???? | | ????????????########## u #????????"""?"""?""???? | | ????????????# ###%###?????????????????????? | | ????????????# #?#%#???????????????????????? | | ????????????# ! #?# ##########??????????????? | | ????????????# #?# w???????????? | | ????????????# ]]* #?# ##########??????????""??? | | ????????????# ]!* = #?#!#???????????????????""??? | | ????????????# ]* %/#?# #???????????????????"""?? | | ########????# #?# #???????????????????"""?? | | #????# ### ###?????????????????"""?? | | ############/##! #?????????????????????? | | T #?????????????????????? | | "" #?????????????????????? | | #### """ #?????????????????????? | | ???# """ ######### #?????????????????????? | | ???# """ #???????#######?????????????????????? | | ???# #???????????????????????????????????? | | ???# """ ######??????????????????????????????? | | ???# """ # #??????????????????????????????? | | ???# """ ##########??????????????????????????? | | ???# # #??????????????????????????? | +----------------------------------------------------+ Best States ------------- Heat Dissipation 62 Energy Generation 35 Energy Capacity 385 Matter Stores 300 Matter Capacity 300 Sight Range 20 Terrain Scan Range 16 Terrain Scan Density 210 ECM Strength 1 Jamming Range 12 Corruption Containment 12 Armor Coverage 225 Utility Shielding 66 Evasion (%) 65 Salvage Targeting 4 Offensive Hacking 20 Defensive Hacking 20 Item Schematics ----------------- Cld. VTOL Module | -6/Factory | Hacked Robot Schematics ------------------ None Fabricated ------------ Cld. VTOL Module | x1 | -6/Factory Repaired ---------- Nothing Alien Tech Used ----------------- None Achievements -------------- Short-term Sacrifices Challenges ------------ None Game ------ Seed WarlordShockCalibrator Manual? 0 Play Time 02:08:13 Cumulative 48.4 hours Start 2025.08.07 @ 14:52:59 End 2025.08.07 @ 17:10:05 Sessions 1 Manual Loads 0 Difficulty Rogue Special Mode None Game No. 33 Rogue 33 Adventurer 0 Explorer 0 Win Type - Total 1 Types 1/0/0/0/0/0/0/0/0/0 Lore% 45 Gallery% 39 Achievement% 35 Wizard Run 0 Options --------- Layout 1 ASCII 0 Keyboard 0 Movement Mouse Keybinds 0 Fullscreen 1 Font 24/Smallcaps Map View 50x35 Zoom Use 0% Tactical HUD 1 Map Filters NONE Filters NONE Steam 1 RUN: 42502fd4-5c1a-4e7c-abfe-9d1d482286d0